[Event "*** SCC Grand Prix: Titled Tuesday Blitz"]
[Site "Chess.com"]
[Date "2020.08.04"]
[Round "7"]
[White "eightbyeightchess"]
[Black "QuintilianoR"]
[Result "1/2-1/2"]
[WhiteElo "2432"]
[BlackElo "2623"]
[TimeControl "180+1"]
[EndTime "15:01:31 PDT"]
[Termination "Game drawn by repetition"]

1. e4 {[%clk 0:03:00.9]} 1... c5 {[%clk 0:02:59.5]} 2. Nf3 {[%clk 0:03:00.3]}
2... d6 {[%clk 0:02:59.8]} 3. d4 {[%clk 0:03:00.9]} 3... cxd4 {[%clk 0:03:00.7]}
4. Qxd4 {[%clk 0:03:01.6]} 4... Nc6 {[%clk 0:02:59.1]} 5. Bb5 {[%clk 0:03:01.4]}
5... Bd7 {[%clk 0:02:57.9]} 6. Bxc6 {[%clk 0:03:01.5]} 6... Bxc6 {[%clk
0:02:57.1]} 7. Nc3 {[%clk 0:03:02.2]} 7... Nf6 {[%clk 0:02:56.7]} 8. Bg5 {[%clk
0:03:02]} 8... e6 {[%clk 0:02:56.8]} 9. O-O-O {[%clk 0:03:01]} 9... Be7 {[%clk
0:02:56.8]} 10. Qd3 {[%clk 0:03:01.3]} 10... O-O {[%clk 0:02:56.1]} 11. Nd4
{[%clk 0:03:01.7]} 11... Qc7 {[%clk 0:02:37.4]} 12. f4 {[%clk 0:03:01.5]} 12...
Rfd8 {[%clk 0:02:36.4]} 13. f5 {[%clk 0:03:00.2]} 13... e5 {[%clk 0:02:08.8]}
14. Bxf6 {[%clk 0:02:59.2]} 14... Bxf6 {[%clk 0:02:08.3]} 15. Nde2 {[%clk
0:02:50.8]} 15... Rac8 {[%clk 0:02:05.9]} 16. h4 {[%clk 0:02:48.3]} 16... b5
{[%clk 0:01:56.6]} 17. Rd2 {[%clk 0:02:32.1]} 17... b4 {[%clk 0:01:38.5]} 18.
Nd5 {[%clk 0:02:31.9]} 18... Bxd5 {[%clk 0:01:38.7]} 19. Qxd5 {[%clk 0:02:32.8]}
19... Qb6 {[%clk 0:01:37.5]} 20. g4 {[%clk 0:02:28.1]} 20... Rc5 {[%clk
0:01:24.4]} 21. Qb3 {[%clk 0:02:22.6]} 21... Qc6 {[%clk 0:01:12.4]} 22. g5
{[%clk 0:02:16.9]} 22... Be7 {[%clk 0:01:11.6]} 23. g6 {[%clk 0:02:17.1]} 23...
d5 {[%clk 0:01:02.4]} 24. gxf7+ {[%clk 0:02:12.1]} 24... Kf8 {[%clk 0:01:01.8]}
25. exd5 {[%clk 0:02:12.2]} 25... Rcxd5 {[%clk 0:01:00.3]} 26. Rxd5 {[%clk
0:02:07.8]} 26... Qxd5 {[%clk 0:00:53.3]} 27. Qxd5 {[%clk 0:01:57.2]} 27... Rxd5
{[%clk 0:00:54.2]} 28. c4 {[%clk 0:01:48.5]} 28... bxc3 {[%clk 0:00:49.4]} 29.
Nxc3 {[%clk 0:01:48.3]} 29... Rd4 {[%clk 0:00:48.2]} 30. Re1 {[%clk 0:01:41.9]}
30... Kxf7 {[%clk 0:00:43.4]} 31. Rxe5 {[%clk 0:01:40]} 31... Bxh4 {[%clk
0:00:43.3]} 32. Ra5 {[%clk 0:01:34.7]} 32... Rd7 {[%clk 0:00:42.6]} 33. b4
{[%clk 0:01:27.8]} 33... h5 {[%clk 0:00:34]} 34. Ne4 {[%clk 0:01:27.7]} 34...
Be7 {[%clk 0:00:25.2]} 35. f6 {[%clk 0:01:23.6]} 35... gxf6 {[%clk 0:00:20.9]}
36. Rxh5 {[%clk 0:01:22.5]} 36... Rd4 {[%clk 0:00:20.2]} 37. Rh7+ {[%clk
0:01:16.7]} 37... Ke6 {[%clk 0:00:18.5]} 38. Nc5+ {[%clk 0:01:16.9]} 38... Bxc5
{[%clk 0:00:18]} 39. bxc5 {[%clk 0:01:17.4]} 39... Rc4+ {[%clk 0:00:17.3]} 40.
Kd2 {[%clk 0:01:16.1]} 40... a5 {[%clk 0:00:17.4]} 41. Rc7 {[%clk 0:01:14.2]}
41... f5 {[%clk 0:00:17.6]} 42. Ke3 {[%clk 0:01:12]} 42... Kd5 {[%clk
0:00:16.4]} 43. Rf7 {[%clk 0:00:54.2]} 43... Ke5 {[%clk 0:00:15.6]} 44. Rc7
{[%clk 0:00:51.6]} 44... Kd5 {[%clk 0:00:15.3]} 45. Rf7 {[%clk 0:00:51.5]} 45...
Kxc5 {[%clk 0:00:15.1]} 46. Rxf5+ {[%clk 0:00:51.5]} 46... Kb4 {[%clk
0:00:14.4]} 47. Kd3 {[%clk 0:00:48.6]} 47... Rc3+ {[%clk 0:00:14.5]} 48. Kd2
{[%clk 0:00:48.6]} 48... Rc8 {[%clk 0:00:14.4]} 49. Rf3 {[%clk 0:00:47.8]} 49...
Rc5 {[%clk 0:00:09.9]} 50. Rb3+ {[%clk 0:00:47.7]} 50... Ka4 {[%clk 0:00:10.2]}
51. Kd1 {[%clk 0:00:41.9]} 51... Rc4 {[%clk 0:00:09.6]} 52. Kd2 {[%clk
0:00:41.6]} 52... Rb4 {[%clk 0:00:09.7]} 53. Kc2 {[%clk 0:00:35.3]} 53... Rh4
{[%clk 0:00:06.7]} 54. Kb1 {[%clk 0:00:33.3]} 54... Rh2 {[%clk 0:00:06.9]} 55.
Rg3 {[%clk 0:00:32.1]} 55... Rh1+ {[%clk 0:00:07]} 56. Kb2 {[%clk 0:00:32.3]}
56... Rh2+ {[%clk 0:00:07.9]} 57. Kb1 {[%clk 0:00:32.7]} 57... Rh1+ {[%clk
0:00:08.8]} 58. Kb2 {[%clk 0:00:32.8]} 58... Rh2+ {[%clk 0:00:09.2]} 59. Kb1
{[%clk 0:00:33.2]} 1/2-1/2

[Event "*** SCC Grand Prix: Titled Tuesday Blitz"]
[Site "Chess.com"]
[Date "2020.08.04"]
[Round "7"]
[White "Resignify"]
[Black "spacegirl987"]
[Result "1-0"]
[WhiteElo "2207"]
[BlackElo "1939"]
[TimeControl "180+1"]
[EndTime "15:01:31 PDT"]
[Termination "Resignify won by resignation"]

1. Nf3 {[%clk 0:03:00.9]} 1... d5 {[%clk 0:02:59.9]} 2. c4 {[%clk 0:02:59.8]}
2... dxc4 {[%clk 0:02:58.7]} 3. Na3 {[%clk 0:02:56.7]} 3... Nf6 {[%clk
0:02:55.6]} 4. g3 {[%clk 0:02:53.5]} 4... Be6 {[%clk 0:02:55.4]} 5. Bg2 {[%clk
0:02:49.3]} 5... g6 {[%clk 0:02:53.4]} 6. Ne5 {[%clk 0:02:39.2]} 6... Bd5 {[%clk
0:02:50.8]} 7. f3 {[%clk 0:02:25]} 7... Bg7 {[%clk 0:02:41.3]} 8. Nexc4 {[%clk
0:02:17.2]} 8... Bxc4 {[%clk 0:02:37.7]} 9. Nxc4 {[%clk 0:02:16.5]} 9... Qd4
{[%clk 0:02:33.6]} 10. d3 {[%clk 0:01:56.2]} 10... O-O {[%clk 0:02:29.9]} 11.
Be3 {[%clk 0:01:54.9]} 11... Qd5 {[%clk 0:02:19.3]} 12. O-O {[%clk 0:01:52]}
12... Qb5 {[%clk 0:02:10.9]} 13. a4 {[%clk 0:01:41]} 13... Qd7 {[%clk
0:02:00.5]} 14. Ne5 {[%clk 0:01:31.9]} 14... Qe6 {[%clk 0:01:57.9]} 15. Nc4
{[%clk 0:01:06]} 15... Nd5 {[%clk 0:01:51.1]} 16. Bf2 {[%clk 0:01:06.2]} 16...
Nc6 {[%clk 0:01:42.9]} 17. f4 {[%clk 0:00:57]} 17... Rfd8 {[%clk 0:01:19.7]} 18.
Rb1 {[%clk 0:00:44.7]} 18... Ndb4 {[%clk 0:01:00.1]} 19. Re1 {[%clk 0:00:31.2]}
19... Rab8 {[%clk 0:00:49]} 20. Qb3 {[%clk 0:00:29.3]} 20... a5 {[%clk
0:00:35.7]} 21. Nxa5 {[%clk 0:00:21.1]} 21... Qxb3 {[%clk 0:00:23.6]} 22. Nxb3
{[%clk 0:00:22]} 22... Nc2 {[%clk 0:00:23.2]} 23. Rec1 {[%clk 0:00:20.7]} 23...
N2d4 {[%clk 0:00:23.5]} 24. Nxd4 {[%clk 0:00:20.6]} 24... Nxd4 {[%clk
0:00:24.4]} 25. Kf1 {[%clk 0:00:17.6]} 25... c6 {[%clk 0:00:21.8]} 26. Rc4
{[%clk 0:00:15.4]} 26... Nb3 {[%clk 0:00:21.1]} 27. Ke1 {[%clk 0:00:13.4]} 27...
Na5 {[%clk 0:00:20.5]} 28. Rb4 {[%clk 0:00:12.5]} 28... Rd7 {[%clk 0:00:13.1]}
29. Bb6 {[%clk 0:00:12.1]} 29... c5 {[%clk 0:00:11.7]} 30. Bxc5 {[%clk 0:00:09]}
30... Nc6 {[%clk 0:00:12.2]} 31. Bxc6 {[%clk 0:00:08.3]} 31... Rc7 {[%clk
0:00:10.2]} 32. Bxb7 {[%clk 0:00:05.4]} 32... Rbxb7 {[%clk 0:00:09.7]} 33. Rxb7
{[%clk 0:00:05]} 33... Rxb7 {[%clk 0:00:10.6]} 34. b4 {[%clk 0:00:03.9]} 34...
Bc3+ {[%clk 0:00:09.9]} 35. Kd1 {[%clk 0:00:03.4]} 35... Bf6 {[%clk 0:00:09.9]}
36. a5 {[%clk 0:00:03.2]} 36... e5 {[%clk 0:00:10]} 37. a6 {[%clk 0:00:03.7]}
37... Rb8 {[%clk 0:00:09.2]} 38. fxe5 {[%clk 0:00:04.2]} 38... Bxe5 {[%clk
0:00:08.3]} 39. d4 {[%clk 0:00:05.1]} 39... Ra8 {[%clk 0:00:08.7]} 40. dxe5
{[%clk 0:00:04.7]} 40... Rd8+ {[%clk 0:00:09.6]} 41. Ke1 {[%clk 0:00:04.7]}
41... Kg7 {[%clk 0:00:10.1]} 42. b5 {[%clk 0:00:04.9]} 42... f6 {[%clk
0:00:10.4]} 43. a7 {[%clk 0:00:05.2]} 43... fxe5 {[%clk 0:00:10.7]} 44. b6
{[%clk 0:00:05.6]} 44... Kf7 {[%clk 0:00:10.9]} 45. b7 {[%clk 0:00:04.6]} 45...
Ke6 {[%clk 0:00:11.8]} 46. b8=Q {[%clk 0:00:04.7]} 46... Rxb8 {[%clk 0:00:11.8]}
47. axb8=Q {[%clk 0:00:05.6]} 47... Kf6 {[%clk 0:00:12.5]} 1-0

[Event "*** SCC Grand Prix: Titled Tuesday Blitz"]
[Site "Chess.com"]
[Date "2020.08.04"]
[Round "7"]
[White "Dr-Bassem"]
[Black "mishanick"]
[Result "0-1"]
[WhiteElo "2789"]
[BlackElo "2938"]
[TimeControl "180+1"]
[EndTime "15:01:33 PDT"]
[Termination "mishanick won on time"]

1. f4 {[%clk 0:03:00.9]} 1... d5 {[%clk 0:02:56.9]} 2. Nf3 {[%clk 0:03:01.3]}
2... Bg4 {[%clk 0:02:57.6]} 3. e3 {[%clk 0:02:45.3]} 3... e6 {[%clk 0:02:55.9]}
4. Be2 {[%clk 0:02:44.9]} 4... Nf6 {[%clk 0:02:55.7]} 5. O-O {[%clk 0:02:45]}
5... Nbd7 {[%clk 0:02:55.5]} 6. b3 {[%clk 0:02:44.3]} 6... Bd6 {[%clk
0:02:55.2]} 7. Bb2 {[%clk 0:02:42.1]} 7... O-O {[%clk 0:02:55.8]} 8. Ne5 {[%clk
0:02:39.2]} 8... Bxe2 {[%clk 0:02:54.8]} 9. Qxe2 {[%clk 0:02:40.1]} 9... c6
{[%clk 0:02:55.1]} 10. d3 {[%clk 0:02:36.4]} 10... Qc7 {[%clk 0:02:55.5]} 11.
Nxd7 {[%clk 0:02:23.6]} 11... Nxd7 {[%clk 0:02:56.4]} 12. Qg4 {[%clk 0:02:22.5]}
12... g6 {[%clk 0:02:55.5]} 13. e4 {[%clk 0:02:17.4]} 13... f5 {[%clk 0:02:53]}
14. exf5 {[%clk 0:02:05.9]} 14... Rxf5 {[%clk 0:02:52]} 15. g3 {[%clk
0:01:43.5]} 15... Raf8 {[%clk 0:02:47.9]} 16. Nd2 {[%clk 0:01:42]} 16... e5
{[%clk 0:02:48.5]} 17. fxe5 {[%clk 0:01:39]} 17... Bxe5 {[%clk 0:02:48.6]} 18.
Rxf5 {[%clk 0:01:35.4]} 18... Rxf5 {[%clk 0:02:49.1]} 19. d4 {[%clk 0:01:20.2]}
19... Nf6 {[%clk 0:02:40.6]} 20. Qh3 {[%clk 0:00:52.2]} 20... Qb6 {[%clk
0:02:34.6]} 21. c3 {[%clk 0:00:51.4]} 21... Bd6 {[%clk 0:02:31.6]} 22. Rf1
{[%clk 0:00:51.6]} 22... Rxf1+ {[%clk 0:02:31.4]} 23. Kxf1 {[%clk 0:00:48.7]}
23... Qa6+ {[%clk 0:02:27.2]} 24. Ke1 {[%clk 0:00:43]} 24... Kf7 {[%clk
0:02:20.2]} 25. a4 {[%clk 0:00:39.1]} 25... Qd3 {[%clk 0:02:02.5]} 26. Qc8
{[%clk 0:00:36]} 26... Qe3+ {[%clk 0:02:01.8]} 27. Kd1 {[%clk 0:00:35.5]} 27...
Qe7 {[%clk 0:02:00.3]} 28. Nf3 {[%clk 0:00:30.9]} 28... Ne4 {[%clk 0:01:56]} 29.
c4 {[%clk 0:00:26.2]} 29... Nf2+ {[%clk 0:01:50.9]} 30. Kc1 {[%clk 0:00:16.7]}
30... Qe3+ {[%clk 0:01:50.3]} 31. Nd2 {[%clk 0:00:16.8]} 31... Qe1+ {[%clk
0:01:49]} 32. Kc2 {[%clk 0:00:16]} 32... Qd1+ {[%clk 0:00:58.6]} 33. Kc3 {[%clk
0:00:15.6]} 33... Ne4+ {[%clk 0:00:22.2]} 34. Nxe4 {[%clk 0:00:15.2]} 34... dxe4
{[%clk 0:00:23.1]} 35. Qxb7+ {[%clk 0:00:15.3]} 35... Kf6 {[%clk 0:00:21.8]} 36.
c5 {[%clk 0:00:14.2]} 36... a5 {[%clk 0:00:11.6]} 37. Qa6 {[%clk 0:00:08.1]}
37... e3 {[%clk 0:00:10.8]} 38. cxd6 {[%clk 0:00:04.5]} 38... Qd2+ {[%clk
0:00:10.3]} 39. Kc4 {[%clk 0:00:03.6]} 39... Qe2+ {[%clk 0:00:10.9]} 40. Kc5
{[%clk 0:00:03.7]} 40... Qxa6 {[%clk 0:00:11.8]} 41. d5+ {[%clk 0:00:04.2]}
41... Kf7 {[%clk 0:00:11.7]} 42. dxc6 {[%clk 0:00:04.7]} 42... e2 {[%clk
0:00:12]} 43. d7 {[%clk 0:00:05.3]} 43... Qa7+ {[%clk 0:00:12.4]} 44. Kd6 {[%clk
0:00:04.3]} 44... e1=Q {[%clk 0:00:11.8]} 0-1

[Event "*** SCC Grand Prix: Titled Tuesday Blitz"]
[Site "Chess.com"]
[Date "2020.08.04"]
[Round "7"]
[White "BlueWizzard"]
[Black "Robert_Chessmood"]
[Result "1/2-1/2"]
[WhiteElo "2711"]
[BlackElo "2949"]
[TimeControl "180+1"]
[EndTime "15:01:35 PDT"]
[Termination "Game drawn by repetition"]

1. e4 {[%clk 0:03:00.9]} 1... e5 {[%clk 0:02:58.6]} 2. Nc3 {[%clk 0:03:00.1]}
2... Nc6 {[%clk 0:02:54.7]} 3. g3 {[%clk 0:02:59.6]} 3... Bc5 {[%clk 0:02:53.5]}
4. Nf3 {[%clk 0:02:59.5]} 4... d6 {[%clk 0:02:50.5]} 5. Na4 {[%clk 0:02:57.7]}
5... Be6 {[%clk 0:02:32.5]} 6. Bb5 {[%clk 0:02:37.8]} 6... Bb6 {[%clk
0:02:23.3]} 7. Nxb6 {[%clk 0:02:30.9]} 7... axb6 {[%clk 0:02:24.2]} 8. d4 {[%clk
0:02:31.2]} 8... exd4 {[%clk 0:02:23.2]} 9. Qxd4 {[%clk 0:02:24.3]} 9... Nf6
{[%clk 0:02:20.5]} 10. e5 {[%clk 0:02:06.8]} 10... dxe5 {[%clk 0:02:14.9]} 11.
Qxd8+ {[%clk 0:02:03.7]} 11... Kxd8 {[%clk 0:02:15.3]} 12. O-O {[%clk
0:01:51.2]} 12... Kc8 {[%clk 0:02:11.6]} 13. Re1 {[%clk 0:01:47.5]} 13... Bd5
{[%clk 0:01:55.5]} 14. Nxe5 {[%clk 0:01:34.4]} 14... Re8 {[%clk 0:01:50.4]} 15.
Bf4 {[%clk 0:01:30.6]} 15... g5 {[%clk 0:01:36.4]} 16. Bxc6 {[%clk 0:01:26.2]}
16... bxc6 {[%clk 0:01:35.9]} 17. Bxg5 {[%clk 0:01:26.5]} 17... Ne4 {[%clk
0:01:30.3]} 18. Bf4 {[%clk 0:01:20.2]} 18... Kb7 {[%clk 0:01:30.1]} 19. c4
{[%clk 0:01:18.6]} 19... f6 {[%clk 0:01:17]} 20. cxd5 {[%clk 0:01:15]} 20...
fxe5 {[%clk 0:01:16.9]} 21. dxc6+ {[%clk 0:01:14.6]} 21... Kxc6 {[%clk
0:01:17.1]} 22. Rxe4 {[%clk 0:01:11.9]} 22... exf4 {[%clk 0:01:17.6]} 23. Rxf4
{[%clk 0:01:12.6]} 23... Re2 {[%clk 0:01:17.7]} 24. Rf7 {[%clk 0:01:08.1]} 24...
Rxb2 {[%clk 0:01:11.8]} 25. Rc1+ {[%clk 0:01:08]} 25... Kb5 {[%clk 0:01:11.9]}
26. Rcxc7 {[%clk 0:00:59.8]} 26... Raxa2 {[%clk 0:01:12.4]} 27. Rf5+ {[%clk
0:01:00]} 27... Ka6 {[%clk 0:01:01.2]} 28. g4 {[%clk 0:00:57]} 28... h6 {[%clk
0:00:55.6]} 29. Rh7 {[%clk 0:00:51.2]} 29... b5 {[%clk 0:00:53.5]} 30. Rxh6+
{[%clk 0:00:49.3]} 30... Ka5 {[%clk 0:00:53]} 31. g5 {[%clk 0:00:49.7]} 31...
Rb1+ {[%clk 0:00:51.1]} 32. Kg2 {[%clk 0:00:49.6]} 32... Raa1 {[%clk 0:00:51.6]}
33. Rh8 {[%clk 0:00:43.1]} 33... Rg1+ {[%clk 0:00:51.2]} 34. Kf3 {[%clk
0:00:41.9]} 34... Rac1 {[%clk 0:00:43.3]} 35. Ra8+ {[%clk 0:00:40.7]} 35... Kb4
{[%clk 0:00:42.7]} 36. Rb8 {[%clk 0:00:41.3]} 36... Rc3+ {[%clk 0:00:41.8]} 37.
Ke2 {[%clk 0:00:39.6]} 37... Rc2+ {[%clk 0:00:39.1]} 38. Kd3 {[%clk 0:00:37.4]}
38... Rc3+ {[%clk 0:00:36.7]} 39. Kd2 {[%clk 0:00:37.6]} 39... Rc5 {[%clk
0:00:37.3]} 40. Rxc5 {[%clk 0:00:32.8]} 40... Kxc5 {[%clk 0:00:38.2]} 41. f4
{[%clk 0:00:22.1]} 41... Kd4 {[%clk 0:00:38.4]} 42. Ke2 {[%clk 0:00:18.9]} 42...
Ke4 {[%clk 0:00:35.4]} 43. Rxb5 {[%clk 0:00:17.7]} 43... Kxf4 {[%clk 0:00:34.7]}
44. h4 {[%clk 0:00:13.9]} 44... Rg2+ {[%clk 0:00:22.3]} 45. Kd3 {[%clk
0:00:14.2]} 45... Kg4 {[%clk 0:00:19]} 46. Ke4 {[%clk 0:00:14.1]} 46... Kxh4
{[%clk 0:00:17.7]} 47. Kf4 {[%clk 0:00:12.2]} 47... Rg4+ {[%clk 0:00:17.5]} 48.
Kf3 {[%clk 0:00:10.1]} 48... Rg3+ {[%clk 0:00:17.8]} 49. Kf4 {[%clk 0:00:09.5]}
49... Rg4+ {[%clk 0:00:17.8]} 50. Kf3 {[%clk 0:00:09.8]} 50... Rg3+ {[%clk
0:00:17.6]} 51. Ke4 {[%clk 0:00:10.1]} 51... Rg4+ {[%clk 0:00:17.2]} 52. Kf3
{[%clk 0:00:10.3]} 1/2-1/2

[Event "*** SCC Grand Prix: Titled Tuesday Blitz"]
[Site "Chess.com"]
[Date "2020.08.04"]
[Round "7"]
[White "Semen_Khanin"]
[Black "Fighter008"]
[Result "0-1"]
[WhiteElo "2772"]
[BlackElo "2630"]
[TimeControl "180+1"]
[EndTime "15:01:36 PDT"]
[Termination "Fighter008 won by resignation"]

1. e4 {[%clk 0:03:00.9]} 1... c5 {[%clk 0:02:58.6]} 2. Nf3 {[%clk 0:03:00.8]}
2... e6 {[%clk 0:02:58.2]} 3. d4 {[%clk 0:03:01.2]} 3... cxd4 {[%clk 0:02:59.1]}
4. Nxd4 {[%clk 0:03:02.1]} 4... a6 {[%clk 0:02:59.1]} 5. c4 {[%clk 0:03:02.6]}
5... Nf6 {[%clk 0:02:57.6]} 6. Nc3 {[%clk 0:03:03.2]} 6... Qc7 {[%clk
0:02:57.8]} 7. a3 {[%clk 0:03:02.9]} 7... b6 {[%clk 0:02:57.7]} 8. Be3 {[%clk
0:03:02.8]} 8... Bb7 {[%clk 0:02:57.9]} 9. f3 {[%clk 0:03:03.4]} 9... d6 {[%clk
0:02:58.2]} 10. Qd2 {[%clk 0:03:04]} 10... Nbd7 {[%clk 0:02:58.6]} 11. Be2
{[%clk 0:03:04.6]} 11... Be7 {[%clk 0:02:59.1]} 12. b4 {[%clk 0:03:05.1]} 12...
Rc8 {[%clk 0:02:59.4]} 13. Rc1 {[%clk 0:03:05.6]} 13... Qb8 {[%clk 0:02:59.3]}
14. O-O {[%clk 0:03:06.1]} 14... Bd8 {[%clk 0:02:59.5]} 15. Rfd1 {[%clk
0:03:00.9]} 15... Bc7 {[%clk 0:02:59.4]} 16. b5 {[%clk 0:02:58.3]} 16... O-O
{[%clk 0:02:42.5]} 17. bxa6 {[%clk 0:02:45.9]} 17... Bxa6 {[%clk 0:02:40.4]} 18.
Nc6 {[%clk 0:02:45.4]} 18... Qa8 {[%clk 0:02:39.8]} 19. Ne7+ {[%clk 0:02:45.6]}
19... Kh8 {[%clk 0:02:40.3]} 20. Nxc8 {[%clk 0:02:46.2]} 20... Rxc8 {[%clk
0:02:40.5]} 21. Nb5 {[%clk 0:02:46.7]} 21... Bb8 {[%clk 0:02:32.9]} 22. Nxd6
{[%clk 0:02:45.6]} 22... Rf8 {[%clk 0:02:33]} 23. f4 {[%clk 0:02:40.4]} 23... e5
{[%clk 0:02:09.1]} 24. Bf3 {[%clk 0:02:40.2]} 24... Qc6 {[%clk 0:01:57.4]} 25.
Qb2 {[%clk 0:02:35.6]} 25... Bxd6 {[%clk 0:01:55.6]} 26. Rxd6 {[%clk 0:01:53.1]}
26... Qxd6 {[%clk 0:01:53.7]} 27. Rd1 {[%clk 0:01:53.4]} 27... Qc7 {[%clk
0:01:46.8]} 28. fxe5 {[%clk 0:01:48.9]} 28... Nxe5 {[%clk 0:01:42.3]} 29. Bxb6
{[%clk 0:01:45.6]} 29... Nxf3+ {[%clk 0:01:36.8]} 30. gxf3 {[%clk 0:01:45.7]}
30... Qxc4 {[%clk 0:01:37.3]} 31. Bd4 {[%clk 0:01:45.3]} 31... Qe6 {[%clk
0:01:20]} 32. Bc5 {[%clk 0:01:32.9]} 32... Rc8 {[%clk 0:01:12.2]} 33. Bd4 {[%clk
0:01:14.2]} 33... h6 {[%clk 0:01:07]} 34. Kh1 {[%clk 0:01:00.8]} 34... Qh3
{[%clk 0:00:56.6]} 35. Qf2 {[%clk 0:01:00.7]} 35... Nh5 {[%clk 0:00:40.7]} 36.
Rg1 {[%clk 0:00:59.7]} 36... Kh7 {[%clk 0:00:40.6]} 37. Be5 {[%clk 0:00:54.5]}
37... Bd3 {[%clk 0:00:38.3]} 38. Qe3 {[%clk 0:00:51.2]} 38... Bc4 {[%clk
0:00:24.5]} 39. a4 {[%clk 0:00:50.7]} 39... Rd8 {[%clk 0:00:20]} 40. Bd4 {[%clk
0:00:14]} 40... Rxd4 {[%clk 0:00:19.6]} 41. Qxd4 {[%clk 0:00:14.5]} 41... Qxf3+
{[%clk 0:00:19.9]} 42. Rg2 {[%clk 0:00:14.8]} 42... Bf1 {[%clk 0:00:19.6]} 43.
Qg1 {[%clk 0:00:11.6]} 43... Nf4 {[%clk 0:00:14.8]} 0-1

[Event "*** SCC Grand Prix: Titled Tuesday Blitz"]
[Site "Chess.com"]
[Date "2020.08.04"]
[Round "7"]
[White "Grandmaster2B"]
[Black "louis198"]
[Result "0-1"]
[WhiteElo "2384"]
[BlackElo "2513"]
[TimeControl "180+1"]
[EndTime "15:01:40 PDT"]
[Termination "louis198 won by resignation"]

1. e4 {[%clk 0:03:00.9]} 1... e6 {[%clk 0:02:59.9]} 2. d4 {[%clk 0:03:00.3]}
2... d5 {[%clk 0:03:00.4]} 3. Nd2 {[%clk 0:03:00.9]} 3... Nc6 {[%clk 0:02:59.4]}
4. Ngf3 {[%clk 0:02:58]} 4... Nf6 {[%clk 0:02:59.1]} 5. e5 {[%clk 0:02:58.1]}
5... Nd7 {[%clk 0:02:59.4]} 6. Be2 {[%clk 0:02:58.5]} 6... f6 {[%clk 0:02:58.8]}
7. exf6 {[%clk 0:02:59.2]} 7... Qxf6 {[%clk 0:02:58.2]} 8. Nf1 {[%clk 0:02:59]}
8... Bd6 {[%clk 0:02:58.8]} 9. Ne3 {[%clk 0:02:56.8]} 9... O-O {[%clk
0:02:59.3]} 10. O-O {[%clk 0:02:57.4]} 10... Ne7 {[%clk 0:02:57.7]} 11. Re1
{[%clk 0:02:57.1]} 11... c6 {[%clk 0:02:57.3]} 12. c3 {[%clk 0:02:57]} 12... e5
{[%clk 0:02:14.4]} 13. Ng4 {[%clk 0:02:32.3]} 13... Qf5 {[%clk 0:02:13.2]} 14.
Nfxe5 {[%clk 0:02:22.8]} 14... Bxe5 {[%clk 0:02:05.9]} 15. Bd3 {[%clk
0:02:08.9]} 15... Bxh2+ {[%clk 0:01:56.7]} 16. Kxh2 {[%clk 0:02:05.8]} 16...
Qh5+ {[%clk 0:01:56.7]} 17. Kg1 {[%clk 0:02:06]} 17... Qf7 {[%clk 0:01:46.3]}
18. Qe2 {[%clk 0:01:25]} 18... Ng6 {[%clk 0:01:39.1]} 19. g3 {[%clk 0:01:23.4]}
19... h5 {[%clk 0:01:25.5]} 20. Ne3 {[%clk 0:00:57.2]} 20... Nf6 {[%clk
0:01:19]} 21. Nf5 {[%clk 0:00:55.9]} 21... Ng4 {[%clk 0:01:08.9]} 22. Nd6 {[%clk
0:00:49.4]} 22... Qf6 {[%clk 0:00:55.1]} 23. Nxc8 {[%clk 0:00:31]} 23... Raxc8
{[%clk 0:00:54.4]} 24. Qe6+ {[%clk 0:00:17.7]} 24... Qxe6 {[%clk 0:00:53.2]} 25.
Rxe6 {[%clk 0:00:18.6]} 25... Nh8 {[%clk 0:00:53.5]} 26. f4 {[%clk 0:00:13.7]}
26... Nf7 {[%clk 0:00:50.8]} 27. Bd2 {[%clk 0:00:11.4]} 27... Nfh6 {[%clk
0:00:50.2]} 28. Rae1 {[%clk 0:00:09.7]} 28... Rc7 {[%clk 0:00:49.1]} 29. Re7
{[%clk 0:00:08]} 29... Rfc8 {[%clk 0:00:42]} 30. Bg6 {[%clk 0:00:04.7]} 30...
Nf6 {[%clk 0:00:35.7]} 31. Rxc7 {[%clk 0:00:03]} 31... Rxc7 {[%clk 0:00:34.9]}
32. f5 {[%clk 0:00:03.9]} 32... Nf7 {[%clk 0:00:30.4]} 33. Bf4 {[%clk
0:00:03.5]} 33... Rd7 {[%clk 0:00:28.9]} 34. Re6 {[%clk 0:00:03.8]} 34... Kf8
{[%clk 0:00:28.9]} 35. Be5 {[%clk 0:00:03.8]} 35... Re7 {[%clk 0:00:25.3]} 36.
Bxf7 {[%clk 0:00:02.6]} 36... Kxf7 {[%clk 0:00:25]} 37. Rxe7+ {[%clk 0:00:02.3]}
37... Kxe7 {[%clk 0:00:25.2]} 38. Bb8 {[%clk 0:00:02.3]} 38... a6 {[%clk
0:00:24.8]} 39. Kg2 {[%clk 0:00:02.7]} 39... Nd7 {[%clk 0:00:24.8]} 40. Bf4
{[%clk 0:00:02.7]} 40... Kf6 {[%clk 0:00:24.9]} 41. Kf3 {[%clk 0:00:01.8]} 41...
Kxf5 {[%clk 0:00:25.3]} 42. Bd6 {[%clk 0:00:02]} 42... g5 {[%clk 0:00:25.6]} 43.
b3 {[%clk 0:00:02.4]} 43... Nf6 {[%clk 0:00:25.4]} 44. Be5 {[%clk 0:00:02.5]}
44... Ne4 {[%clk 0:00:25.5]} 45. c4 {[%clk 0:00:02.2]} 45... g4+ {[%clk
0:00:25.6]} 46. Kg2 {[%clk 0:00:02.6]} 46... Nc3 {[%clk 0:00:23.6]} 47. Bf4
{[%clk 0:00:02]} 47... Nxa2 {[%clk 0:00:23.3]} 48. cxd5 {[%clk 0:00:01.2]} 48...
cxd5 {[%clk 0:00:23.1]} 49. Bd2 {[%clk 0:00:02.1]} 49... Ke4 {[%clk 0:00:23.4]}
50. Kf2 {[%clk 0:00:01.9]} 50... Kxd4 {[%clk 0:00:23.2]} 51. Ba5 {[%clk
0:00:02.8]} 51... Nc3 {[%clk 0:00:23]} 52. Bb6+ {[%clk 0:00:02.6]} 52... Kd3
{[%clk 0:00:23.2]} 53. Ba5 {[%clk 0:00:03.5]} 53... Ne4+ {[%clk 0:00:23.2]} 54.
Kg2 {[%clk 0:00:03.5]} 54... d4 {[%clk 0:00:23.6]} 55. Bc7 {[%clk 0:00:04.4]}
55... b5 {[%clk 0:00:22.6]} 56. Bf4 {[%clk 0:00:05.3]} 0-1